Workbook

Sheet Výpočet - 70 K - 100_80_20
D2: tr | E2: t1 | F2: t2 | G2: c | H2: AR / LN | I2: ∆t AR | J2: ∆t LN | K2: выбор AR / LN | L2: ∆t | M2: ∆t N
D3: [°C] | E3: [°C] | F3: [°C] | G3: [-]
D4: 20 | E4: 90 | F4: 70 | G4: =(F4-$D$4)/(E4-$D$4) -> 0.714 | H4: =IF(G4>=0.7,"AR","LN") -> AR | I4: =((E4+F4)/2)-$D$4 -> 60.0 | J4: =((E4-F4)/LN((E4-$D$4)/(F4-$D$4))) -> 59.440 | K4: AR | L4: =IF($K$4="AR",I4,J4) -> 60 | M4: =IF($K$4="AR",((75+65)/2)-20,((75-65)/LN((75-20)/(65-20)))) -> 50.00 | P4: ELSEN
A7: =$D$4 -> 20 | B7: °C | D7: Тип 10 | K7: Тип 11 | R7: Тип 20 | Y7: Тип 21 | AF7: Тип 22 | AM7: Тип 33
B9: =$K$4 -> AR
A11: Длина L [мм] | B11: t1, t2 [°C] | D11: Высота H [мм] | K11: Высота H [мм] | R11: Высота H [мм] | Y11: Высота H [мм] | AF11: Высота H [мм] | AM11: Высота H [мм]
D12: 200 | E12: 300 | F12: 400 | G12: 500 | H12: 600 | I12: 700 | J12: 900 | K12: 200 | L12: 300 | M12: 400 | N12: 500 | O12: 600 | P12: 700 | Q12: 900 | R12: 200 | S12: 300 | T12: 400 | U12: 500 | V12: 600 | W12: 700 | X12: 900 | Y12: 200 | Z12: 300 | AA12: 400 | AB12: 500 | AC12: 600 | AD12: 700 | AE12: 900 | AF12: 200 | AG12: 300 | AH12: 400 | AI12: 500 | AJ12: 600 | AK12: 700 | AL12: 900 | AM12: 200 | AN12: 300 | AO12: 400 | AP12: 500 | AQ12: 600 | AR12: 700 | AS12: 900
A13: 400 | B13: =$E$4 -> 90 | C13: =$F$4 -> 70 | D13: =IF($K$4="AR",$A13/1000*D$32*POWER(((($B13+$C13)/2)-$A$7)/($M$4),D$33),$A13/1000*D$32*POWER(((($B13-$C13)/(LN(($B13-$A$7)/($C13-$A$7))))/($M$4)),D$33)) -> 0 | E13: 168 | F13: 215 | G13: 261 | H13: 306 | I13: 352 | J13: 444 | K13: 0 | L13: 260 | M13: 338 | N13: =IF($K$4="AR",$A13/1000*N$32*POWER(((($B13+$C13)/2)-$A$7)/($M$4),N$33),$A13/1000*N$32*POWER(((($B13-$C13)/(LN(($B13-$A$7)/($C13-$A$7))))/($M$4)),N$33)) -> 414 | O13: 488 | P13: 0 | Q13: 703 | R13: 0 | S13: 281 | T13: 354 | U13: 425 | V13: 496 | W13: 568 | X13: =IF($K$4="AR",$A13/1000*X$32*POWER(((($B13+$C13)/2)-$A$7)/($M$4),X$33),$A13/1000*X$32*POWER(((($B13-$C13)/(LN(($B13-$A$7)/($C13-$A$7))))/($M$4)),X$33)) -> 716 | Y13: 0 | Z13: 355 | AA13: 447 | AB13: 532 | AC13: 618 | AD13: 698 | AE13: 852 | AF13: 326 | AG13: 450 | AH13: =IF($K$4="AR",$A13/1000*AH$32*POWER(((($B13+$C13)/2)-$A$7)/($M$4),AH$33),$A13/1000*AH$32*POWER(((($B13-$C13)/(LN(($B13-$A$7)/($C13-$A$7))))/($M$4)),AH$33)) -> 567 | AI13: 675 | AJ13: 785 | AK13: 882 | AL13: 1,078 | AM13: 471 | AN13: 645 | AO13: 806 | AP13: 957 | AQ13: 1,100 | AR13: 1,238 | AS13: 1,503
A14: 500 | B14: 90 | C14: 70 | D14: 0 | E14: 210 | F14: 269 | G14: 326 | H14: 382 | I14: 440 | J14: 555 | K14: 0 | L14: 326 | M14: 422 | N14: 517 | O14: 610 | P14: 0 | Q14: 879 | R14: 0 | S14: 351 | T14: 442 | U14: 531 | V14: 620 | W14: 710 | X14: 895 | Y14: 0 | Z14: 444 | AA14: 558 | AB14: 665 | AC14: 772 | AD14: 872 | AE14: 1,065 | AF14: 408 | AG14: 563 | AH14: 708 | AI14: 844 | AJ14: 982 | AK14: 1,103 | AL14: 1,348 | AM14: 588 | AN14: 806 | AO14: 1,007 | AP14: 1,196 | AQ14: 1,375 | AR14: 1,547 | AS14: 1,879
A15: 600 | B15: 90 | C15: 70 | D15: 0 | E15: 252 | F15: 323 | G15: 391 | H15: 459 | I15: 528 | J15: 666 | K15: 0 | L15: 391 | M15: 506 | N15: 620 | O15: 732 | P15: 0 | Q15: 1,055 | R15: 0 | S15: 421 | T15: 531 | U15: 637 | V15: 744 | W15: 852 | X15: 1,074 | Y15: 0 | Z15: 533 | AA15: 670 | AB15: 799 | AC15: 927 | AD15: 1,047 | AE15: 1,278 | AF15: 490 | AG15: 675 | AH15: 850 | AI15: 1,013 | AJ15: 1,178 | AK15: 1,323 | AL15: 1,617 | AM15: 706 | AN15: 967 | AO15: 1,208 | AP15: 1,435 | AQ15: 1,650 | AR15: 1,857 | AS15: 2,255
A16: 700 | B16: 90 | C16: 70 | D16: 0 | E16: 294 | F16: 377 | G16: 457 | H16: 535 | I16: 616 | J16: 777 | K16: 0 | L16: 456 | M16: 591 | N16: 724 | O16: 854 | P16: 0 | Q16: 1,230 | R16: 0 | S16: 491 | T16: 619 | U16: 744 | V16: 868 | W16: 995 | X16: 1,253 | Y16: 0 | Z16: 621 | AA16: 781 | AB16: 932 | AC16: 1,081 | AD16: 1,221 | AE16: 1,491 | AF16: 571 | AG16: 788 | AH16: 991 | AI16: 1,181 | AJ16: 1,374 | AK16: 1,544 | AL16: 1,887 | AM16: 824 | AN16: 1,128 | AO16: 1,410 | AP16: 1,674 | AQ16: 1,925 | AR16: 2,166 | AS16: 2,630
A17: 800 | B17: 90 | C17: 70 | D17: 0 | E17: 337 | F17: 430 | G17: 522 | H17: 612 | I17: 704 | J17: 889 | K17: 0 | L17: 521 | M17: 675 | N17: 827 | O17: 976 | P17: 0 | Q17: 1,406 | R17: 0 | S17: 562 | T17: 708 | U17: 850 | V17: 992 | W17: 1,137 | X17: 1,432 | Y17: 0 | Z17: 710 | AA17: 893 | AB17: 1,065 | AC17: 1,236 | AD17: 1,396 | AE17: 1,704 | AF17: 653 | AG17: 900 | AH17: 1,133 | AI17: 1,350 | AJ17: 1,571 | AK17: 1,764 | AL17: 2,157 | AM17: 941 | AN17: 1,289 | AO17: 1,611 | AP17: 1,913 | AQ17: 2,200 | AR17: 2,476 | AS17: 3,006
A18: 900 | B18: 90 | C18: 70 | D18: 0 | E18: 379 | F18: 484 | G18: 587 | H18: 688 | I18: 791 | J18: 1,000 | K18: 0 | L18: 586 | M18: 760 | N18: 931 | O18: 1,098 | P18: 0 | Q18: 1,582 | R18: 0 | S18: 632 | T18: 796 | U18: 956 | V18: 1,116 | W18: 1,279 | X18: 1,611 | Y18: 0 | Z18: 799 | AA18: 1,005 | AB18: 1,198 | AC18: 1,390 | AD18: 1,570 | AE18: 1,917 | AF18: 734 | AG18: 1,013 | AH18: 1,275 | AI18: 1,519 | AJ18: 1,767 | AK18: 1,985 | AL18: 2,426 | AM18: 1,059 | AN18: 1,450 | AO18: 1,813 | AP18: 2,152 | AQ18: 2,475 | AR18: 2,785 | AS18: 3,382
A19: 1000 | B19: 90 | C19: 70 | D19: 0 | E19: 421 | F19: 538 | G19: 652 | H19: 765 | I19: 879 | J19: 1,111 | K19: 0 | L19: 651 | M19: 844 | N19: 1,034 | O19: 1,220 | P19: 0 | Q19: 1,758 | R19: 0 | S19: 702 | T19: 885 | U19: 1,062 | V19: 1,240 | W19: 1,421 | X19: 1,790 | Y19: 0 | Z19: 888 | AA19: 1,116 | AB19: 1,331 | AC19: 1,544 | AD19: 1,745 | AE19: 2,130 | AF19: 816 | AG19: 1,125 | AH19: 1,416 | AI19: 1,688 | AJ19: 1,964 | AK19: 2,205 | AL19: 2,696 | AM19: 1,177 | AN19: 1,611 | AO19: 2,014 | AP19: 2,391 | AQ19: 2,750 | AR19: 3,095 | AS19: 3,758
A20: 1100 | B20: 90 | C20: 70 | D20: 0 | E20: 463 | F20: 592 | G20: 718 | H20: 841 | I20: 967 | J20: 1,222 | K20: 0 | L20: 716 | M20: 929 | N20: 1,137 | O20: 1,342 | P20: 0 | Q20: 1,934 | R20: 0 | S20: 772 | T20: 973 | U20: 1,168 | V20: 1,364 | W20: 1,563 | X20: 1,969 | Y20: 0 | Z20: 977 | AA20: 1,228 | AB20: 1,464 | AC20: 1,699 | AD20: 1,919 | AE20: 2,343 | AF20: 898 | AG20: 1,238 | AH20: 1,558 | AI20: 1,857 | AJ20: 2,160 | AK20: 2,426 | AL20: 2,965 | AM20: 1,294 | AN20: 1,772 | AO20: 2,216 | AP20: 2,631 | AQ20: 3,025 | AR20: 3,404 | AS20: 4,133
A21: 1200 | B21: 90 | C21: 70 | D21: 0 | E21: 505 | F21: 646 | G21: 783 | H21: 918 | I21: 1,055 | J21: 1,333 | K21: 0 | L21: 781 | M21: 1,013 | N21: 1,241 | O21: 1,464 | P21: 0 | Q21: 2,109 | R21: 0 | S21: 842 | T21: 1,062 | U21: 1,275 | V21: 1,488 | W21: 1,705 | X21: 2,148 | Y21: 0 | Z21: 1,065 | AA21: 1,340 | AB21: 1,597 | AC21: 1,853 | AD21: 2,094 | AE21: 2,556 | AF21: 979 | AG21: 1,350 | AH21: 1,700 | AI21: 2,025 | AJ21: 2,356 | AK21: 2,646 | AL21: 3,235 | AM21: 1,412 | AN21: 1,934 | AO21: 2,417 | AP21: 2,870 | AQ21: 3,300 | AR21: 3,714 | AS21: 4,509
A22: 1400 | B22: 90 | C22: 70 | D22: 0 | E22: 589 | F22: 753 | G22: 913 | H22: 1,071 | I22: 1,231 | J22: 1,555 | K22: 0 | L22: 912 | M22: 1,182 | N22: 1,448 | O22: 1,708 | P22: 0 | Q22: 2,461 | R22: 0 | S22: 983 | T22: 1,238 | U22: 1,487 | V22: 1,736 | W22: 1,989 | X22: 2,506 | Y22: 0 | Z22: 1,243 | AA22: 1,563 | AB22: 1,863 | AC22: 2,162 | AD22: 2,443 | AE22: 2,982 | AF22: 1,142 | AG22: 1,575 | AH22: 1,983 | AI22: 2,363 | AJ22: 2,749 | AK22: 3,087 | AL22: 3,774 | AM22: 1,647 | AN22: 2,256 | AO22: 2,820 | AP22: 3,348 | AQ22: 3,849 | AR22: 4,333 | AS22: 5,261
A23: 1600 | B23: 90 | C23: 70 | D23: =IF($K$4="AR",$A23/1000*D$32*POWER(((($B23+$C23)/2)-$A$7)/($M$4),D$33),$A23/1000*D$32*POWER(((($B23-$C23)/(LN(($B23-$A$7)/($C23-$A$7))))/($M$4)),D$33)) -> 0 | E23: 673 | F23: 861 | G23: 1,044 | H23: 1,224 | I23: 1,407 | J23: 1,777 | K23: 0 | L23: 1,042 | M23: 1,351 | N23: =IF($K$4="AR",$A23/1000*N$32*POWER(((($B23+$C23)/2)-$A$7)/($M$4),N$33),$A23/1000*N$32*POWER(((($B23-$C23)/(LN(($B23-$A$7)/($C23-$A$7))))/($M$4)),N$33)) -> 1,654 | O23: 1,951 | P23: 0 | Q23: 2,812 | R23: 0 | S23: 1,123 | T23: 1,415 | U23: 1,700 | V23: 1,984 | W23: 2,273 | X23: =IF($K$4="AR",$A23/1000*X$32*POWER(((($B23+$C23)/2)-$A$7)/($M$4),X$33),$A23/1000*X$32*POWER(((($B23-$C23)/(LN(($B23-$A$7)/($C23-$A$7))))/($M$4)),X$33)) -> 2,864 | Y23: 0 | Z23: 1,420 | AA23: 1,786 | AB23: 2,129 | AC23: 2,471 | AD23: 2,792 | AE23: 3,408 | AF23: 1,306 | AG23: 1,800 | AH23: =IF($K$4="AR",$A23/1000*AH$32*POWER(((($B23+$C23)/2)-$A$7)/($M$4),AH$33),$A23/1000*AH$32*POWER(((($B23-$C23)/(LN(($B23-$A$7)/($C23-$A$7))))/($M$4)),AH$33)) -> 2,266 | AI23: 2,701 | AJ23: 3,142 | AK23: 3,528 | AL23: 4,313 | AM23: 1,883 | AN23: 2,578 | AO23: 3,223 | AP23: 3,826 | AQ23: 4,399 | AR23: 4,952 | AS23: 6,012
A24: 1800 | B24: 90 | C24: 70 | D24: 0 | E24: 757 | F24: 968 | G24: 1,174 | H24: 1,377 | I24: 1,583 | J24: 1,999 | K24: 0 | L24: 1,172 | M24: 1,519 | N24: 1,861 | O24: 2,195 | P24: 0 | Q24: 3,164 | R24: 0 | S24: 1,264 | T24: 1,592 | U24: 1,912 | V24: 2,232 | W24: 2,557 | X24: 3,221 | Y24: 0 | Z24: 1,598 | AA24: 2,010 | AB24: 2,396 | AC24: 2,780 | AD24: 3,141 | AE24: 3,834 | AF24: 1,469 | AG24: 2,026 | AH24: 2,549 | AI24: 3,038 | AJ24: 3,534 | AK24: 3,969 | AL24: 4,852 | AM24: 2,118 | AN24: 2,900 | AO24: 3,625 | AP24: 4,305 | AQ24: 4,949 | AR24: 5,571 | AS24: 6,764
A25: 2000 | B25: 90 | C25: 70 | D25: 0 | E25: 841 | F25: 1,076 | G25: 1,305 | H25: 1,529 | I25: 1,759 | J25: 2,221 | K25: 0 | L25: 1,302 | M25: 1,688 | N25: 2,068 | O25: 2,439 | P25: 0 | Q25: 3,516 | R25: 0 | S25: 1,404 | T25: 1,769 | U25: 2,124 | V25: 2,480 | W25: 2,841 | X25: 3,579 | Y25: 0 | Z25: 1,776 | AA25: 2,233 | AB25: 2,662 | AC25: 3,089 | AD25: 3,490 | AE25: 4,260 | AF25: 1,632 | AG25: 2,251 | AH25: 2,833 | AI25: 3,376 | AJ25: 3,927 | AK25: 4,410 | AL25: 5,392 | AM25: 2,353 | AN25: 3,223 | AO25: 4,028 | AP25: 4,783 | AQ25: 5,499 | AR25: 6,190 | AS25: 7,515
A26: 2300 | B26: 90 | C26: 70 | D26: 0 | E26: 968 | F26: 1,237 | G26: 1,500 | H26: 1,759 | I26: 2,023 | J26: 2,555 | K26: 0 | L26: 1,498 | M26: 1,941 | N26: 2,378 | O26: 2,805 | P26: 0 | Q26: 4,043 | R26: 0 | S26: 1,615 | T26: 2,035 | U26: 2,443 | V26: 2,852 | W26: 3,268 | X26: 4,116 | Y26: 0 | Z26: 2,042 | AA26: 2,568 | AB26: 3,061 | AC26: 3,552 | AD26: 4,013 | AE26: 4,899 | AF26: 1,877 | AG26: 2,588 | AH26: 3,258 | AI26: 3,882 | AJ26: 4,516 | AK26: 5,072 | AL26: 6,200 | AM26: 2,706 | AN26: 3,706 | AO26: 4,632 | AP26: 5,500 | AQ26: 6,324 | AR26: 7,118 | AS26: 8,642
A27: 2600 | B27: 90 | C27: 70 | D27: 0 | E27: 1,094 | F27: 1,399 | G27: 1,696 | H27: 1,988 | I27: 2,287 | J27: 2,888 | K27: 0 | L27: 1,693 | M27: 2,195 | N27: 2,688 | O27: 3,171 | P27: 0 | Q27: 4,570 | R27: 0 | S27: 1,825 | T27: 2,300 | U27: 2,762 | V27: 3,224 | W27: 3,694 | X27: 4,653 | Y27: 0 | Z27: 2,308 | AA27: 2,903 | AB27: 3,460 | AC27: 4,016 | AD27: 4,537 | AE27: 5,538 | AF27: 2,122 | AG27: 2,926 | AH27: 3,683 | AI27: 4,388 | AJ27: 5,105 | AK27: 5,733 | AL27: 7,009 | AM27: 3,059 | AN27: 4,189 | AO27: 5,237 | AP27: 6,218 | AQ27: 7,149 | AR27: 8,047 | AS27: 9,770
A28: 3000 | B28: 90 | C28: 70 | D28: 0 | E28: 1,262 | F28: 1,614 | G28: 1,957 | H28: 2,294 | I28: 2,638 | J28: 3,332 | K28: 0 | L28: 1,954 | M28: 2,532 | N28: 3,102 | O28: 3,659 | P28: 0 | Q28: 5,273 | R28: 0 | S28: 2,106 | T28: 2,654 | U28: 3,187 | V28: 3,720 | W28: 4,262 | X28: 5,369 | Y28: 0 | Z28: 2,663 | AA28: 3,349 | AB28: 3,993 | AC28: 4,633 | AD28: 5,235 | AE28: 6,390 | AF28: 2,448 | AG28: 3,376 | AH28: 4,249 | AI28: 5,064 | AJ28: 5,891 | AK28: 6,615 | AL28: 8,087 | AM28: 3,530 | AN28: 4,834 | AO28: 6,042 | AP28: 7,174 | AQ28: 8,249 | AR28: 9,285 | AS28: 11,273
D30: Тип 10 | K30: Тип 11 | R30: Тип 20 | Y30: Тип 21 | AF30: Тип 22 | AM30: Тип 33
A31: Высота H [мм] | D31: 200 | E31: 300 | F31: 400 | G31: 500 | H31: 600 | I31: 700 | J31: 900 | K31: 200 | L31: 300 | M31: 400 | N31: 500 | O31: 600 | P31: 700 | Q31: 900 | R31: 200 | S31: 300 | T31: 400 | U31: 500 | V31: 600 | W31: 700 | X31: 900 | Y31: 200 | Z31: 300 | AA31: 400 | AB31: 500 | AC31: 600 | AD31: 700 | AE31: 900 | AF31: 200 | AG31: 300 | AH31: 400 | AI31: 500 | AJ31: 600 | AK31: 700 | AL31: 900 | AM31: 200 | AN31: 300 | AO31: 400 | AP31: 500 | AQ31: 600 | AR31: 700 | AS31: 900
A32: QN [W/м] | D32: 0 | E32: 330 | F32: 423 | G32: 514 | H32: 604 | I32: 694 | J32: 875 | K32: 0 | L32: 518 | M32: 670 | N32: 819 | O32: 964 | P32: 0 | Q32: 1,386 | R32: 0 | S32: 554 | T32: 698 | U32: 838 | V32: 978 | W32: 1,117 | X32: 1,398 | Y32: 0 | Z32: 704 | AA32: 883 | AB32: 1,053 | AC32: 1,216 | AD32: 1,373 | AE32: 1,674 | AF32: 649 | AG32: 892 | AH32: 1,118 | AI32: 1,333 | AJ32: 1,550 | AK32: 1,738 | AL32: 2,118 | AM32: 934 | AN32: 1,276 | AO32: 1,588 | AP32: 1,882 | AQ32: 2,162 | AR32: 2,430 | AS32: 2,942
A33: n [-] | D33: 0 | E33: 1.332 | F33: 1.319 | G33: 1.307 | H33: 1.294 | I33: 1.299 | J33: 1.308 | K33: 0 | L33: 1.256 | M33: 1.267 | N33: 1.279 | O33: 1.290 | P33: 0.000 | Q33: 1.303 | R33: 0 | S33: 1.299 | T33: 1.300 | U33: 1.301 | V33: 1.301 | W33: 1.319 | X33: 1.355 | Y33: 0 | Z33: 1.272 | AA33: 1.286 | AB33: 1.284 | AC33: 1.312 | AD33: 1.315 | AE33: 1.322 | AF33: 1.256 | AG33: 1.274 | AH33: 1.298 | AI33: 1.295 | AJ33: 1.297 | AK33: 1.306 | AL33: 1.323 | AM33: 1.267 | AN33: 1.280 | AO33: 1.304 | AP33: 1.314 | AQ33: 1.319 | AR33: 1.327 | AS33: 1.342
A34: KM | D34: 0 | E34: 1.802 | F34: 2.426 | G34: 3.096 | H34: 3.821 | I34: 4.311 | J34: 5.239 | K34: 0 | L34: 3.813 | M34: 4.713 | N34: 5.506 | O34: 6.193 | P34: 0.000 | Q34: 8.462 | R34: 0 | S34: 3.445 | T34: 4.326 | U34: 5.173 | V34: 6.016 | W34: 6.409 | X34: 6.978 | Y34: 0 | Z34: 4.856 | AA34: 5.760 | AB34: 6.923 | AC34: 7.187 | AD34: 8.011 | AE34: 9.515 | AF34: 4.768 | AG34: 6.101 | AH34: 6.983 | AI34: 8.424 | AJ34: 9.696 | AK34: 10.512 | AL34: 11.973 | AM34: 6.578 | AN34: 8.548 | AO34: 9.677 | AP34: 11.024 | AQ34: 12.429 | AR34: 13.549 | AS34: 15.439

Sheet Výpočet - pro více spádů (hidden)
D1: tr | E1: t1 | F1: t2 | G1: c | H1: AR / LN | I1: ∆t AR | J1: ∆t LN | K1: Výběr AR / LN | L1: ∆t | M1: ∆t N
D2: [°C] | E2: [°C] | F2: [°C] | G2: [-]
D3: 20 | E3: 100 | F3: 80 | G3: =(F3-$D$3)/(E3-$D$3) -> 0.750 | H3: =IF(G3>=0.7,"AR","LN") -> AR | I3: =((E3+F3)/2)-$D$3 -> 70.0 | J3: =((E3-F3)/LN((E3-$D$3)/(F3-$D$3))) -> 69.521 | K3: AR | L3: =IF($K$3="AR",I3,J3) -> 70 | M3: =IF($K$3="AR",((75+65)/2)-20,((75-65)/LN((75-20)/(65-20)))) -> 50.00 | P3: ELSEN
E4: 75 | F4: 65 | G4: =(F4-$D$3)/(E4-$D$3) -> 0.818 | H4: =IF(G4>=0.7,"AR","LN") -> AR | I4: =((E4+F4)/2)-$D$3 -> 50.0 | J4: =((E4-F4)/LN((E4-$D$3)/(F4-$D$3))) -> 49.833 | L4: =IF($K$3="AR",I4,J4) -> 50
E5: 55 | F5: 45 | G5: =(F5-$D$3)/(E5-$D$3) -> 0.714 | H5: =IF(G5>=0.7,"AR","LN") -> AR | I5: =((E5+F5)/2)-$D$3 -> 30.0 | J5: =((E5-F5)/LN((E5-$D$3)/(F5-$D$3))) -> 29.720 | L5: =IF($K$3="AR",I5,J5) -> 30
E6: 45 | F6: 40 | G6: =(F6-$D$3)/(E6-$D$3) -> 0.800 | H6: =IF(G6>=0.7,"AR","LN") -> AR | I6: =((E6+F6)/2)-$D$3 -> 22.5 | J6: =((E6-F6)/LN((E6-$D$3)/(F6-$D$3))) -> 22.407 | L6: =IF($K$3="AR",I6,J6) -> 22.5
A9: =$D$3 -> 20 | B9: °C | D9: Typ 10 | K9: Typ 11 | R9: Typ 20 | Y9: Typ 21 | AF9: Typ 22 | AM9: Typ 33
B11: =$K$3 -> AR
A13: Délka L [mm] | B13: t1, t2 [°C] | D13: Výška H [mm] | K13: Výška H [mm] | R13: Výška H [mm] | Y13: Výška H [mm] | AF13: Výška H [mm] | AM13: Výška H [mm]
D14: 200 | E14: 300 | F14: 400 | G14: 500 | H14: 600 | I14: 700 | J14: 900 | K14: 200 | L14: 300 | M14: 400 | N14: 500 | O14: 600 | P14: 700 | Q14: 900 | R14: 200 | S14: 300 | T14: 400 | U14: 500 | V14: 600 | W14: 700 | X14: 900 | Y14: 200 | Z14: 300 | AA14: 400 | AB14: 500 | AC14: 600 | AD14: 700 | AE14: 900 | AF14: 200 | AG14: 300 | AH14: 400 | AI14: 500 | AJ14: 600 | AK14: 700 | AL14: 900 | AM14: 200 | AN14: 300 | AO14: 400 | AP14: 500 | AQ14: 600 | AR14: 700 | AS14: 900
A15: 400 | B15: =$E$3 -> 100 | C15: =$F$3 -> 80 | D15: =IF($K$3="AR",$A15/1000*D$82*POWER(((($B15+$C15)/2)-$A$9)/($M$3),D$83),$A15/1000*D$82*POWER(((($B15-$C15)/(LN(($B15-$A$9)/($C15-$A$9))))/($M$3)),D$83)) -> 0 | E15: 207 | F15: 264 | G15: 319 | H15: 373 | I15: 430 | J15: 544 | K15: 0 | L15: 316 | M15: 410 | N15: =IF($K$3="AR",$A15/1000*N$82*POWER(((($B15+$C15)/2)-$A$9)/($M$3),N$83),$A15/1000*N$82*POWER(((($B15-$C15)/(LN(($B15-$A$9)/($C15-$A$9))))/($M$3)),N$83)) -> 504 | O15: 595 | P15: 0 | Q15: 860 | R15: 0 | S15: 343 | T15: 432 | U15: 519 | V15: 606 | W15: 696 | X15: =IF($K$3="AR",$A15/1000*X$82*POWER(((($B15+$C15)/2)-$A$9)/($M$3),X$83),$A15/1000*X$82*POWER(((($B15-$C15)/(LN(($B15-$A$9)/($C15-$A$9))))/($M$3)),X$83)) -> 882 | Y15: 0 | Z15: 432 | AA15: 545 | AB15: 649 | AC15: 756 | AD15: 855 | AE15: 1045 | AF15: 396 | AG15: 548 | AH15: =IF($K$3="AR",$A15/1000*AH$82*POWER(((($B15+$C15)/2)-$A$9)/($M$3),AH$83),$A15/1000*AH$82*POWER(((($B15-$C15)/(LN(($B15-$A$9)/($C15-$A$9))))/($M$3)),AH$83)) -> 692 | AI15: 824 | AJ15: 959 | AK15: 1079 | AL15: 1322 | AM15: 572 | AN15: 785 | AO15: 985 | AP15: 1171 | AQ15: 1348 | AR15: 1519 | AS15: 1848
A16: 400 | B16: =$E$4 -> 75 | C16: =$F$4 -> 65 | D16: 0 | E16: 132 | F16: 169 | G16: 206 | H16: 242 | I16: 278 | J16: 350 | K16: 0 | L16: 207 | M16: 268 | N16: 328 | O16: 386 | P16: 0 | Q16: 554 | R16: 0 | S16: 222 | T16: 279 | U16: 335 | V16: 391 | W16: 447 | X16: 559 | Y16: 0 | Z16: 282 | AA16: 353 | AB16: 421 | AC16: 486 | AD16: 549 | AE16: 670 | AF16: 260 | AG16: 357 | AH16: 447 | AI16: 533 | AJ16: 620 | AK16: 695 | AL16: 847 | AM16: 374 | AN16: 510 | AO16: 635 | AP16: 753 | AQ16: 865 | AR16: 972 | AS16: 1177
A17: 400 | B17: =$E$5 -> 55 | C17: =$F$5 -> 45 | D17: 0 | E17: 67 | F17: 86 | G17: 105 | H17: 125 | I17: 143 | J17: 179 | K17: 0 | L17: 109 | M17: 140 | N17: 170 | O17: 199 | P17: 0 | Q17: 285 | R17: 0 | S17: 114 | T17: 144 | U17: 173 | V17: 201 | W17: 228 | X17: 280 | Y17: 0 | Z17: 147 | AA17: 183 | AB17: 219 | AC17: 249 | AD17: 281 | AE17: 341 | AF17: 137 | AG17: 186 | AH17: 230 | AI17: 275 | AJ17: 320 | AK17: 357 | AL17: 431 | AM17: 196 | AN17: 265 | AO17: 326 | AP17: 385 | AQ17: 441 | AR17: 494 | AS17: 593
A18: 400 | B18: =$E$6 -> 45 | C18: =$F$6 -> 40 | D18: 0 | E18: 46 | F18: 59 | G18: 72 | H18: 86 | I18: 98 | J18: 123 | K18: 0 | L18: 76 | M18: 97 | N18: 118 | O18: 138 | P18: 0 | Q18: 196 | R18: 0 | S18: 79 | T18: 99 | U18: 119 | V18: 138 | W18: 156 | X18: 190 | Y18: 0 | Z18: 102 | AA18: 126 | AB18: 151 | AC18: 171 | AD18: 192 | AE18: 233 | AF18: 95 | AG18: 129 | AH18: 159 | AI18: 190 | AJ18: 220 | AK18: 245 | AL18: 295 | AM18: 136 | AN18: 184 | AO18: 224 | AP18: 264 | AQ18: 302 | AR18: 337 | AS18: 403
A19: 500 | B19: =$E$3 -> 100 | C19: =$F$3 -> 80 | D19: 0 | E19: 258 | F19: 330 | G19: 399 | H19: 467 | I19: 537 | J19: 679 | K19: 0 | L19: 395 | M19: 513 | N19: 630 | O19: 744 | P19: 0 | Q19: 1074 | R19: 0 | S19: 429 | T19: 540 | U19: 649 | V19: 758 | W19: 871 | X19: 1103 | Y19: 0 | Z19: 540 | AA19: 681 | AB19: 811 | AC19: 945 | AD19: 1069 | AE19: 1306 | AF19: 495 | AG19: 685 | AH19: 865 | AI19: 1030 | AJ19: 1199 | AK19: 1348 | AL19: 1653 | AM19: 715 | AN19: 981 | AO19: 1231 | AP19: 1464 | AQ19: 1685 | AR19: 1899 | AS19: 2311
A20: 500 | B20: =$E$4 -> 75 | C20: =$F$4 -> 65 | D20: 0 | E20: 165 | F20: 212 | G20: 257 | H20: 302 | I20: 347 | J20: 438 | K20: 0 | L20: 259 | M20: 335 | N20: 410 | O20: 482 | P20: 0 | Q20: 693 | R20: 0 | S20: 277 | T20: 349 | U20: 419 | V20: 489 | W20: 559 | X20: 699 | Y20: 0 | Z20: 352 | AA20: 442 | AB20: 527 | AC20: 608 | AD20: 687 | AE20: 837 | AF20: 325 | AG20: 446 | AH20: 559 | AI20: 667 | AJ20: 775 | AK20: 869 | AL20: 1059 | AM20: 467 | AN20: 638 | AO20: 794 | AP20: 941 | AQ20: 1081 | AR20: 1215 | AS20: 1471
A21: 500 | B21: =$E$5 -> 55 | C21: =$F$5 -> 45 | D21: 0 | E21: 84 | F21: 108 | G21: 132 | H21: 156 | I21: 179 | J21: 224 | K21: 0 | L21: 136 | M21: 175 | N21: 213 | O21: 249 | P21: 0 | Q21: 356 | R21: 0 | S21: 143 | T21: 180 | U21: 216 | V21: 252 | W21: 285 | X21: 350 | Y21: 0 | Z21: 184 | AA21: 229 | AB21: 273 | AC21: 311 | AD21: 351 | AE21: 426 | AF21: 171 | AG21: 233 | AH21: 288 | AI21: 344 | AJ21: 400 | AK21: 446 | AL21: 539 | AM21: 245 | AN21: 332 | AO21: 408 | AP21: 481 | AQ21: 551 | AR21: 617 | AS21: 741
A22: 500 | B22: =$E$6 -> 45 | C22: =$F$6 -> 40 | D22: 0 | E22: 57 | F22: 74 | G22: 91 | H22: 107 | I22: 123 | J22: 154 | K22: 0 | L22: 95 | M22: 122 | N22: 148 | O22: 172 | P22: 0 | Q22: 245 | R22: 0 | S22: 98 | T22: 124 | U22: 148 | V22: 173 | W22: 195 | X22: 237 | Y22: 0 | Z22: 127 | AA22: 158 | AB22: 189 | AC22: 213 | AD22: 240 | AE22: 291 | AF22: 119 | AG22: 161 | AH22: 198 | AI22: 237 | AJ22: 275 | AK22: 306 | AL22: 368 | AM22: 170 | AN22: 230 | AO22: 280 | AP22: 330 | AQ22: 377 | AR22: 421 | AS22: 504
A23: 600 | B23: =$E$3 -> 100 | C23: =$F$3 -> 80 | D23: 0 | E23: 310 | F23: 396 | G23: 479 | H23: 560 | I23: 645 | J23: 815 | K23: 0 | L23: 474 | M23: 616 | N23: 756 | O23: 893 | P23: 0 | Q23: 1289 | R23: 0 | S23: 515 | T23: 648 | U23: 779 | V23: 909 | W23: 1045 | X23: 1323 | Y23: 0 | Z23: 648 | AA23: 817 | AB23: 973 | AC23: 1134 | AD23: 1282 | AE23: 1567 | AF23: 594 | AG23: 822 | AH23: 1038 | AI23: 1236 | AJ23: 1439 | AK23: 1618 | AL23: 1983 | AM23: 858 | AN23: 1178 | AO23: 1477 | AP23: 1757 | AQ23: 2022 | AR23: 2278 | AS23: 2773
A24: 600 | B24: =$E$4 -> 75 | C24: =$F$4 -> 65 | D24: 0 | E24: 198 | F24: 254 | G24: 308 | H24: 362 | I24: 416 | J24: 525 | K24: 0 | L24: 311 | M24: 402 | N24: 491 | O24: 578 | P24: 0 | Q24: 832 | R24: 0 | S24: 332 | T24: 419 | U24: 503 | V24: 587 | W24: 670 | X24: 839 | Y24: 0 | Z24: 422 | AA24: 530 | AB24: 632 | AC24: 730 | AD24: 824 | AE24: 1004 | AF24: 389 | AG24: 535 | AH24: 671 | AI24: 800 | AJ24: 930 | AK24: 1043 | AL24: 1271 | AM24: 560 | AN24: 766 | AO24: 953 | AP24: 1129 | AQ24: 1297 | AR24: 1458 | AS24: 1765
A25: 600 | B25: =$E$5 -> 55 | C25: =$F$5 -> 45 | D25: =IF($K$3="AR",$A25/1000*D$82*POWER(((($B25+$C25)/2)-$A$9)/($M$3),D$83),$A25/1000*D$82*POWER(((($B25-$C25)/(LN(($B25-$A$9)/($C25-$A$9))))/($M$3)),D$83)) -> 0 | E25: 100 | F25: 129 | G25: 158 | H25: 187 | I25: 214 | J25: 269 | K25: 0 | L25: 164 | M25: 210 | N25: =IF($K$3="AR",$A25/1000*N$82*POWER(((($B25+$C25)/2)-$A$9)/($M$3),N$83),$A25/1000*N$82*POWER(((($B25-$C25)/(LN(($B25-$A$9)/($C25-$A$9))))/($M$3)),N$83)) -> 256 | O25: 299 | P25: 0 | Q25: 427 | R25: 0 | S25: 171 | T25: 216 | U25: 259 | V25: 302 | W25: 342 | X25: =IF($K$3="AR",$A25/1000*X$82*POWER(((($B25+$C25)/2)-$A$9)/($M$3),X$83),$A25/1000*X$82*POWER(((($B25-$C25)/(LN(($B25-$A$9)/($C25-$A$9))))/($M$3)),X$83)) -> 420 | Y25: 0 | Z25: 221 | AA25: 275 | AB25: 328 | AC25: 373 | AD25: 421 | AE25: 511 | AF25: 205 | AG25: 279 | AH25: =IF($K$3="AR",$A25/1000*AH$82*POWER(((($B25+$C25)/2)-$A$9)/($M$3),AH$83),$A25/1000*AH$82*POWER(((($B25-$C25)/(LN(($B25-$A$9)/($C25-$A$9))))/($M$3)),AH$83)) -> 346 | AI25: 413 | AJ25: 479 | AK25: 535 | AL25: 647 | AM25: 293 | AN25: 398 | AO25: 490 | AP25: 577 | AQ25: 661 | AR25: 740 | AS25: 889
A26: 600 | B26: =$E$6 -> 45 | C26: =$F$6 -> 40 | D26: 0 | E26: 68 | F26: 89 | G26: 109 | H26: 129 | I26: 148 | J26: 185 | K26: 0 | L26: 114 | M26: 146 | N26: 177 | O26: 206 | P26: 0 | Q26: 294 | R26: 0 | S26: 118 | T26: 148 | U26: 178 | V26: 208 | W26: 234 | X26: 284 | Y26: 0 | Z26: 153 | AA26: 190 | AB26: 227 | AC26: 256 | AD26: 288 | AE26: 350 | AF26: 143 | AG26: 193 | AH26: 238 | AI26: 284 | AJ26: 330 | AK26: 368 | AL26: 442 | AM26: 204 | AN26: 276 | AO26: 336 | AP26: 395 | AQ26: 453 | AR26: 506 | AS26: 605
A27: 700 | B27: =$E$3 -> 100 | C27: =$F$3 -> 80 | D27: 0 | E27: 362 | F27: 462 | G27: 558 | H27: 654 | I27: 752 | J27: 951 | K27: 0 | L27: 553 | M27: 718 | N27: 882 | O27: 1042 | P27: 0 | Q27: 1504 | R27: 0 | S27: 600 | T27: 757 | U27: 909 | V27: 1061 | W27: 1219 | X27: 1544 | Y27: 0 | Z27: 756 | AA27: 953 | AB27: 1136 | AC27: 1323 | AD27: 1496 | AE27: 1828 | AF27: 693 | AG27: 959 | AH27: 1211 | AI27: 1442 | AJ27: 1679 | AK27: 1888 | AL27: 2314 | AM27: 1001 | AN27: 1374 | AO27: 1724 | AP27: 2050 | AQ27: 2359 | AR27: 2658 | AS27: 3235
A28: 700 | B28: =$E$4 -> 75 | C28: =$F$4 -> 65 | D28: 0 | E28: 231 | F28: 296 | G28: 360 | H28: 423 | I28: 486 | J28: 613 | K28: 0 | L28: 363 | M28: 469 | N28: 573 | O28: 675 | P28: 0 | Q28: 970 | R28: 0 | S28: 388 | T28: 489 | U28: 587 | V28: 685 | W28: 782 | X28: 979 | Y28: 0 | Z28: 493 | AA28: 618 | AB28: 737 | AC28: 851 | AD28: 961 | AE28: 1172 | AF28: 454 | AG28: 624 | AH28: 783 | AI28: 933 | AJ28: 1085 | AK28: 1217 | AL28: 1483 | AM28: 654 | AN28: 893 | AO28: 1112 | AP28: 1317 | AQ28: 1513 | AR28: 1701 | AS28: 2059
A29: 700 | B29: =$E$5 -> 55 | C29: =$F$5 -> 45 | D29: 0 | E29: 117 | F29: 151 | G29: 185 | H29: 218 | I29: 250 | J29: 314 | K29: 0 | L29: 191 | M29: 246 | N29: 298 | O29: 349 | P29: 0 | Q29: 499 | R29: 0 | S29: 200 | T29: 252 | U29: 302 | V29: 352 | W29: 399 | X29: 490 | Y29: 0 | Z29: 257 | AA29: 320 | AB29: 382 | AC29: 436 | AD29: 491 | AE29: 597 | AF29: 239 | AG29: 326 | AH29: 403 | AI29: 482 | AJ29: 559 | AK29: 624 | AL29: 754 | AM29: 342 | AN29: 465 | AO29: 571 | AP29: 673 | AQ29: 772 | AR29: 864 | AS29: 1038
A30: 700 | B30: =$E$6 -> 45 | C30: =$F$6 -> 40 | D30: 0 | E30: 80 | F30: 103 | G30: 127 | H30: 150 | I30: 172 | J30: 215 | K30: 0 | L30: 133 | M30: 171 | N30: 207 | O30: 241 | P30: 0 | Q30: 343 | R30: 0 | S30: 137 | T30: 173 | U30: 208 | V30: 242 | W30: 273 | X30: 332 | Y30: 0 | Z30: 178 | AA30: 221 | AB30: 264 | AC30: 299 | AD30: 336 | AE30: 408 | AF30: 167 | AG30: 226 | AH30: 278 | AI30: 332 | AJ30: 385 | AK30: 429 | AL30: 515 | AM30: 238 | AN30: 322 | AO30: 392 | AP30: 461 | AQ30: 528 | AR30: 590 | AS30: 705
A31: 800 | B31: =$E$3 -> 100 | C31: =$F$3 -> 80 | D31: 0 | E31: 413 | F31: 527 | G31: 638 | H31: 747 | I31: 860 | J31: 1087 | K31: 0 | L31: 632 | M31: 821 | N31: 1007 | O31: 1190 | P31: 0 | Q31: 1719 | R31: 0 | S31: 686 | T31: 865 | U31: 1038 | V31: 1212 | W31: 1393 | X31: 1764 | Y31: 0 | Z31: 864 | AA31: 1089 | AB31: 1298 | AC31: 1512 | AD31: 1710 | AE31: 2089 | AF31: 792 | AG31: 1096 | AH31: 1384 | AI31: 1648 | AJ31: 1919 | AK31: 2157 | AL31: 2644 | AM31: 1144 | AN31: 1570 | AO31: 1970 | AP31: 2343 | AQ31: 2696 | AR31: 3038 | AS31: 3697
A32: 800 | B32: =$E$4 -> 75 | C32: =$F$4 -> 65 | D32: 0 | E32: 264 | F32: 338 | G32: 411 | H32: 483 | I32: 555 | J32: 700 | K32: 0 | L32: 414 | M32: 536 | N32: 655 | O32: 771 | P32: 0 | Q32: 1109 | R32: 0 | S32: 443 | T32: 558 | U32: 670 | V32: 782 | W32: 894 | X32: 1118 | Y32: 0 | Z32: 563 | AA32: 706 | AB32: 842 | AC32: 973 | AD32: 1098 | AE32: 1339 | AF32: 519 | AG32: 714 | AH32: 894 | AI32: 1066 | AJ32: 1240 | AK32: 1390 | AL32: 1694 | AM32: 747 | AN32: 1021 | AO32: 1270 | AP32: 1506 | AQ32: 1730 | AR32: 1944 | AS32: 2354
A33: 800 | B33: =$E$5 -> 55 | C33: =$F$5 -> 45 | D33: 0 | E33: 134 | F33: 172 | G33: 211 | H33: 249 | I33: 286 | J33: 359 | K33: 0 | L33: 218 | M33: 281 | N33: 341 | O33: 399 | P33: 0 | Q33: 570 | R33: 0 | S33: 228 | T33: 288 | U33: 345 | V33: 402 | W33: 455 | X33: 560 | Y33: 0 | Z33: 294 | AA33: 366 | AB33: 437 | AC33: 498 | AD33: 561 | AE33: 682 | AF33: 273 | AG33: 372 | AH33: 461 | AI33: 550 | AJ33: 639 | AK33: 714 | AL33: 862 | AM33: 391 | AN33: 531 | AO33: 653 | AP33: 770 | AQ33: 882 | AR33: 987 | AS33: 1186
A34: 800 | B34: =$E$6 -> 45 | C34: =$F$6 -> 40 | D34: 0 | E34: 91 | F34: 118 | G34: 145 | H34: 172 | I34: 197 | J34: 246 | K34: 0 | L34: 152 | M34: 195 | N34: 236 | O34: 275 | P34: 0 | Q34: 392 | R34: 0 | S34: 157 | T34: 198 | U34: 237 | V34: 277 | W34: 312 | X34: 379 | Y34: 0 | Z34: 204 | AA34: 253 | AB34: 302 | AC34: 341 | AD34: 384 | AE34: 466 | AF34: 190 | AG34: 258 | AH34: 317 | AI34: 379 | AJ34: 440 | AK34: 490 | AL34: 589 | AM34: 272 | AN34: 367 | AO34: 449 | AP34: 527 | AQ34: 603 | AR34: 674 | AS34: 806
A35: 900 | B35: =$E$3 -> 100 | C35: =$F$3 -> 80 | D35: =IF($K$3="AR",$A35/1000*D$82*POWER(((($B35+$C35)/2)-$A$9)/($M$3),D$83),$A35/1000*D$82*POWER(((($B35-$C35)/(LN(($B35-$A$9)/($C35-$A$9))))/($M$3)),D$83)) -> 0 | E35: 465 | F35: 593 | G35: 718 | H35: 840 | I35: 967 | J35: 1223 | K35: 0 | L35: 711 | M35: 924 | N35: =IF($K$3="AR",$A35/1000*N$82*POWER(((($B35+$C35)/2)-$A$9)/($M$3),N$83),$A35/1000*N$82*POWER(((($B35-$C35)/(LN(($B35-$A$9)/($C35-$A$9))))/($M$3)),N$83)) -> 1133 | O35: 1339 | P35: 0 | Q35: 1934 | R35: 0 | S35: 772 | T35: 973 | U35: 1168 | V35: 1364 | W35: 1567 | X35: =IF($K$3="AR",$A35/1000*X$82*POWER(((($B35+$C35)/2)-$A$9)/($M$3),X$83),$A35/1000*X$82*POWER(((($B35-$C35)/(LN(($B35-$A$9)/($C35-$A$9))))/($M$3)),X$83)) -> 1985 | Y35: 0 | Z35: 972 | AA35: 1225 | AB35: 1460 | AC35: 1702 | AD35: 1923 | AE35: 2350 | AF35: 891 | AG35: 1233 | AH35: =IF($K$3="AR",$A35/1000*AH$82*POWER(((($B35+$C35)/2)-$A$9)/($M$3),AH$83),$A35/1000*AH$82*POWER(((($B35-$C35)/(LN(($B35-$A$9)/($C35-$A$9))))/($M$3)),AH$83)) -> 1557 | AI35: 1855 | AJ35: 2158 | AK35: 2427 | AL35: 2975 | AM35: 1287 | AN35: 1766 | AO35: 2216 | AP35: 2635 | AQ35: 3032 | AR35: 3417 | AS35: 4159
A36: 900 | B36: =$E$4 -> 75 | C36: =$F$4 -> 65 | D36: 0 | E36: 297 | F36: 381 | G36: 463 | H36: 544 | I36: 625 | J36: 788 | K36: 0 | L36: 466 | M36: 603 | N36: 737 | O36: 868 | P36: 0 | Q36: 1247 | R36: 0 | S36: 499 | T36: 628 | U36: 754 | V36: 880 | W36: 1005 | X36: 1258 | Y36: 0 | Z36: 634 | AA36: 795 | AB36: 948 | AC36: 1094 | AD36: 1236 | AE36: 1507 | AF36: 584 | AG36: 803 | AH36: 1006 | AI36: 1200 | AJ36: 1395 | AK36: 1564 | AL36: 1906 | AM36: 841 | AN36: 1148 | AO36: 1429 | AP36: 1694 | AQ36: 1946 | AR36: 2187 | AS36: 2648
A37: 900 | B37: =$E$5 -> 55 | C37: =$F$5 -> 45 | D37: 0 | E37: 150 | F37: 194 | G37: 237 | H37: 281 | I37: 322 | J37: 404 | K37: 0 | L37: 245 | M37: 316 | N37: 384 | O37: 449 | P37: 0 | Q37: 641 | R37: 0 | S37: 257 | T37: 323 | U37: 388 | V37: 453 | W37: 512 | X37: 630 | Y37: 0 | Z37: 331 | AA37: 412 | AB37: 492 | AC37: 560 | AD37: 631 | AE37: 767 | AF37: 308 | AG37: 419 | AH37: 519 | AI37: 619 | AJ37: 719 | AK37: 803 | AL37: 970 | AM37: 440 | AN37: 597 | AO37: 734 | AP37: 866 | AQ37: 992 | AR37: 1111 | AS37: 1334
A38: 900 | B38: =$E$6 -> 45 | C38: =$F$6 -> 40 | D38: 0 | E38: 103 | F38: 133 | G38: 163 | H38: 193 | I38: 221 | J38: 277 | K38: 0 | L38: 171 | M38: 219 | N38: 266 | O38: 310 | P38: 0 | Q38: 441 | R38: 0 | S38: 177 | T38: 223 | U38: 267 | V38: 311 | W38: 351 | X38: 427 | Y38: 0 | Z38: 229 | AA38: 285 | AB38: 340 | AC38: 384 | AD38: 432 | AE38: 524 | AF38: 214 | AG38: 290 | AH38: 357 | AI38: 427 | AJ38: 495 | AK38: 551 | AL38: 663 | AM38: 306 | AN38: 413 | AO38: 505 | AP38: 593 | AQ38: 679 | AR38: 758 | AS38: 907
A39: 1000 | B39: =$E$3 -> 100 | C39: =$F$3 -> 80 | D39: 0 | E39: 517 | F39: 659 | G39: 798 | H39: 934 | I39: 1074 | J39: 1359 | K39: 0 | L39: 790 | M39: 1026 | N39: 1259 | O39: 1488 | P39: 0 | Q39: 2149 | R39: 0 | S39: 858 | T39: 1081 | U39: 1298 | V39: 1515 | W39: 1741 | X39: 2205 | Y39: 0 | Z39: 1080 | AA39: 1361 | AB39: 1622 | AC39: 1891 | AD39: 2137 | AE39: 2611 | AF39: 990 | AG39: 1370 | AH39: 1730 | AI39: 2061 | AJ39: 2398 | AK39: 2697 | AL39: 3306 | AM39: 1430 | AN39: 1963 | AO39: 2462 | AP39: 2928 | AQ39: 3369 | AR39: 3797 | AS39: 4621
A40: 1000 | B40: =$E$4 -> 75 | C40: =$F$4 -> 65 | D40: 0 | E40: 330 | F40: 423 | G40: 514 | H40: 604 | I40: 694 | J40: 875 | K40: 0 | L40: 518 | M40: 670 | N40: 819 | O40: 964 | P40: 0 | Q40: 1386 | R40: 0 | S40: 554 | T40: 698 | U40: 838 | V40: 978 | W40: 1117 | X40: 1398 | Y40: 0 | Z40: 704 | AA40: 883 | AB40: 1053 | AC40: 1216 | AD40: 1373 | AE40: 1674 | AF40: 649 | AG40: 892 | AH40: 1118 | AI40: 1333 | AJ40: 1550 | AK40: 1738 | AL40: 2118 | AM40: 934 | AN40: 1276 | AO40: 1588 | AP40: 1882 | AQ40: 2162 | AR40: 2430 | AS40: 2942
A41: 1000 | B41: =$E$5 -> 55 | C41: =$F$5 -> 45 | D41: 0 | E41: 167 | F41: 216 | G41: 264 | H41: 312 | I41: 357 | J41: 449 | K41: 0 | L41: 273 | M41: 351 | N41: 426 | O41: 499 | P41: 0 | Q41: 712 | R41: 0 | S41: 285 | T41: 359 | U41: 431 | V41: 503 | W41: 569 | X41: 700 | Y41: 0 | Z41: 368 | AA41: 458 | AB41: 546 | AC41: 622 | AD41: 701 | AE41: 852 | AF41: 342 | AG41: 465 | AH41: 576 | AI41: 688 | AJ41: 799 | AK41: 892 | AL41: 1078 | AM41: 489 | AN41: 664 | AO41: 816 | AP41: 962 | AQ41: 1102 | AR41: 1234 | AS41: 1482
A42: 1000 | B42: =$E$6 -> 45 | C42: =$F$6 -> 40 | D42: 0 | E42: 114 | F42: 148 | G42: 181 | H42: 215 | I42: 246 | J42: 308 | K42: 0 | L42: 190 | M42: 244 | N42: 295 | O42: 344 | P42: 0 | Q42: 490 | R42: 0 | S42: 196 | T42: 247 | U42: 297 | V42: 346 | W42: 390 | X42: 474 | Y42: 0 | Z42: 255 | AA42: 316 | AB42: 378 | AC42: 427 | AD42: 480 | AE42: 583 | AF42: 238 | AG42: 322 | AH42: 397 | AI42: 474 | AJ42: 550 | AK42: 613 | AL42: 736 | AM42: 340 | AN42: 459 | AO42: 561 | AP42: 659 | AQ42: 754 | AR42: 843 | AS42: 1008
A43: 1100 | B43: =$E$3 -> 100 | C43: =$F$3 -> 80 | D43: 0 | E43: 568 | F43: 725 | G43: 878 | H43: 1027 | I43: 1182 | J43: 1495 | K43: 0 | L43: 869 | M43: 1129 | N43: 1385 | O43: 1637 | P43: 0 | Q43: 2364 | R43: 0 | S43: 943 | T43: 1189 | U43: 1428 | V43: 1667 | W43: 1915 | X43: 2426 | Y43: 0 | Z43: 1188 | AA43: 1497 | AB43: 1784 | AC43: 2080 | AD43: 2351 | AE43: 2873 | AF43: 1089 | AG43: 1506 | AH43: 1903 | AI43: 2267 | AJ43: 2638 | AK43: 2966 | AL43: 3636 | AM43: 1573 | AN43: 2159 | AO43: 2709 | AP43: 3221 | AQ43: 3706 | AR43: 4177 | AS43: 5083
A44: 1100 | B44: =$E$4 -> 75 | C44: =$F$4 -> 65 | D44: 0 | E44: 363 | F44: 465 | G44: 565 | H44: 664 | I44: 763 | J44: 963 | K44: 0 | L44: 570 | M44: 737 | N44: 901 | O44: 1060 | P44: 0 | Q44: 1525 | R44: 0 | S44: 609 | T44: 768 | U44: 922 | V44: 1076 | W44: 1229 | X44: 1538 | Y44: 0 | Z44: 774 | AA44: 971 | AB44: 1158 | AC44: 1338 | AD44: 1510 | AE44: 1841 | AF44: 714 | AG44: 981 | AH44: 1230 | AI44: 1466 | AJ44: 1705 | AK44: 1912 | AL44: 2330 | AM44: 1027 | AN44: 1404 | AO44: 1747 | AP44: 2070 | AQ44: 2378 | AR44: 2673 | AS44: 3236
A45: 1100 | B45: =$E$5 -> 55 | C45: =$F$5 -> 45 | D45: =IF($K$3="AR",$A45/1000*D$82*POWER(((($B45+$C45)/2)-$A$9)/($M$3),D$83),$A45/1000*D$82*POWER(((($B45-$C45)/(LN(($B45-$A$9)/($C45-$A$9))))/($M$3)),D$83)) -> 0 | E45: 184 | F45: 237 | G45: 290 | H45: 343 | I45: 393 | J45: 493 | K45: 0 | L45: 300 | M45: 386 | N45: =IF($K$3="AR",$A45/1000*N$82*POWER(((($B45+$C45)/2)-$A$9)/($M$3),N$83),$A45/1000*N$82*POWER(((($B45-$C45)/(LN(($B45-$A$9)/($C45-$A$9))))/($M$3)),N$83)) -> 469 | O45: 549 | P45: 0 | Q45: 783 | R45: 0 | S45: 314 | T45: 395 | U45: 474 | V45: 553 | W45: 626 | X45: =IF($K$3="AR",$A45/1000*X$82*POWER(((($B45+$C45)/2)-$A$9)/($M$3),X$83),$A45/1000*X$82*POWER(((($B45-$C45)/(LN(($B45-$A$9)/($C45-$A$9))))/($M$3)),X$83)) -> 770 | Y45: 0 | Z45: 404 | AA45: 503 | AB45: 601 | AC45: 684 | AD45: 772 | AE45: 937 | AF45: 376 | AG45: 512 | AH45: =IF($K$3="AR",$A45/1000*AH$82*POWER(((($B45+$C45)/2)-$A$9)/($M$3),AH$83),$A45/1000*AH$82*POWER(((($B45-$C45)/(LN(($B45-$A$9)/($C45-$A$9))))/($M$3)),AH$83)) -> 634 | AI45: 757 | AJ45: 879 | AK45: 981 | AL45: 1185 | AM45: 538 | AN45: 730 | AO45: 897 | AP45: 1058 | AQ45: 1213 | AR45: 1357 | AS45: 1630
A46: 1100 | B46: =$E$6 -> 45 | C46: =$F$6 -> 40 | D46: 0 | E46: 125 | F46: 162 | G46: 199 | H46: 236 | I46: 271 | J46: 339 | K46: 0 | L46: 209 | M46: 268 | N46: 325 | O46: 378 | P46: 0 | Q46: 539 | R46: 0 | S46: 216 | T46: 272 | U46: 326 | V46: 381 | W46: 429 | X46: 521 | Y46: 0 | Z46: 280 | AA46: 348 | AB46: 415 | AC46: 469 | AD46: 529 | AE46: 641 | AF46: 262 | AG46: 355 | AH46: 436 | AI46: 522 | AJ46: 605 | AK46: 674 | AL46: 810 | AM46: 374 | AN46: 505 | AO46: 617 | AP46: 725 | AQ46: 830 | AR46: 927 | AS46: 1108
A47: 1200 | B47: =$E$3 -> 100 | C47: =$F$3 -> 80 | D47: 0 | E47: 620 | F47: 791 | G47: 957 | H47: 1120 | I47: 1289 | J47: 1631 | K47: 0 | L47: 948 | M47: 1231 | N47: 1511 | O47: 1786 | P47: 0 | Q47: 2579 | R47: 0 | S47: 1029 | T47: 1297 | U47: 1558 | V47: 1818 | W47: 2089 | X47: 2646 | Y47: 0 | Z47: 1296 | AA47: 1634 | AB47: 1947 | AC47: 2269 | AD47: 2564 | AE47: 3134 | AF47: 1188 | AG47: 1643 | AH47: 2076 | AI47: 2473 | AJ47: 2878 | AK47: 3236 | AL47: 3967 | AM47: 1716 | AN47: 2355 | AO47: 2955 | AP47: 3514 | AQ47: 4043 | AR47: 4556 | AS47: 5545
A48: 1200 | B48: =$E$4 -> 75 | C48: =$F$4 -> 65 | D48: 0 | E48: 396 | F48: 508 | G48: 617 | H48: 725 | I48: 833 | J48: 1050 | K48: 0 | L48: 622 | M48: 804 | N48: 983 | O48: 1157 | P48: 0 | Q48: 1663 | R48: 0 | S48: 665 | T48: 838 | U48: 1006 | V48: 1174 | W48: 1340 | X48: 1678 | Y48: 0 | Z48: 845 | AA48: 1060 | AB48: 1264 | AC48: 1459 | AD48: 1648 | AE48: 2009 | AF48: 779 | AG48: 1070 | AH48: 1342 | AI48: 1600 | AJ48: 1860 | AK48: 2086 | AL48: 2542 | AM48: 1121 | AN48: 1531 | AO48: 1906 | AP48: 2258 | AQ48: 2594 | AR48: 2916 | AS48: 3530
A49: 1200 | B49: =$E$5 -> 55 | C49: =$F$5 -> 45 | D49: 0 | E49: 201 | F49: 259 | G49: 316 | H49: 374 | I49: 429 | J49: 538 | K49: 0 | L49: 327 | M49: 421 | N49: 511 | O49: 598 | P49: 0 | Q49: 855 | R49: 0 | S49: 342 | T49: 431 | U49: 518 | V49: 604 | W49: 683 | X49: 840 | Y49: 0 | Z49: 441 | AA49: 549 | AB49: 656 | AC49: 747 | AD49: 842 | AE49: 1023 | AF49: 410 | AG49: 558 | AH49: 691 | AI49: 826 | AJ49: 959 | AK49: 1070 | AL49: 1293 | AM49: 587 | AN49: 796 | AO49: 979 | AP49: 1154 | AQ49: 1323 | AR49: 1481 | AS49: 1779
A50: 1200 | B50: =$E$6 -> 45 | C50: =$F$6 -> 40 | D50: 0 | E50: 137 | F50: 177 | G50: 217 | H50: 258 | I50: 295 | J50: 369 | K50: 0 | L50: 228 | M50: 292 | N50: 354 | O50: 413 | P50: 0 | Q50: 587 | R50: 0 | S50: 236 | T50: 297 | U50: 356 | V50: 415 | W50: 467 | X50: 569 | Y50: 0 | Z50: 306 | AA50: 379 | AB50: 453 | AC50: 512 | AD50: 577 | AE50: 699 | AF50: 286 | AG50: 387 | AH50: 476 | AI50: 569 | AJ50: 660 | AK50: 735 | AL50: 884 | AM50: 408 | AN50: 551 | AO50: 673 | AP50: 791 | AQ50: 905 | AR50: 1011 | AS50: 1209
A51: 1400 | B51: =$E$3 -> 100 | C51: =$F$3 -> 80 | D51: 0 | E51: 723 | F51: 923 | G51: 1117 | H51: 1307 | I51: 1504 | J51: 1902 | K51: 0 | L51: 1106 | M51: 1437 | N51: 1763 | O51: 2083 | P51: 0 | Q51: 3008 | R51: 0 | S51: 1201 | T51: 1513 | U51: 1817 | V51: 2121 | W51: 2438 | X51: 3088 | Y51: 0 | Z51: 1512 | AA51: 1906 | AB51: 2271 | AC51: 2647 | AD51: 2992 | AE51: 3656 | AF51: 1386 | AG51: 1917 | AH51: 2422 | AI51: 2885 | AJ51: 3357 | AK51: 3776 | AL51: 4628 | AM51: 2003 | AN51: 2748 | AO51: 3447 | AP51: 4100 | AQ51: 4717 | AR51: 5316 | AS51: 6470
A52: 1400 | B52: =$E$4 -> 75 | C52: =$F$4 -> 65 | D52: 0 | E52: 462 | F52: 592 | G52: 720 | H52: 846 | I52: 972 | J52: 1225 | K52: 0 | L52: 725 | M52: 938 | N52: 1147 | O52: 1350 | P52: 0 | Q52: 1940 | R52: 0 | S52: 776 | T52: 977 | U52: 1173 | V52: 1369 | W52: 1564 | X52: 1957 | Y52: 0 | Z52: 986 | AA52: 1236 | AB52: 1474 | AC52: 1702 | AD52: 1922 | AE52: 2344 | AF52: 909 | AG52: 1249 | AH52: 1565 | AI52: 1866 | AJ52: 2170 | AK52: 2433 | AL52: 2965 | AM52: 1308 | AN52: 1786 | AO52: 2223 | AP52: 2635 | AQ52: 3027 | AR52: 3402 | AS52: 4119
A53: 1400 | B53: =$E$5 -> 55 | C53: =$F$5 -> 45 | D53: 0 | E53: 234 | F53: 302 | G53: 369 | H53: 437 | I53: 500 | J53: 628 | K53: 0 | L53: 382 | M53: 491 | N53: 597 | O53: 698 | P53: 0 | Q53: 997 | R53: 0 | S53: 400 | T53: 503 | U53: 604 | V53: 704 | W53: 797 | X53: 980 | Y53: 0 | Z53: 515 | AA53: 641 | AB53: 765 | AC53: 871 | AD53: 982 | AE53: 1193 | AF53: 478 | AG53: 651 | AH53: 807 | AI53: 963 | AJ53: 1119 | AK53: 1249 | AL53: 1509 | AM53: 685 | AN53: 929 | AO53: 1142 | AP53: 1347 | AQ53: 1543 | AR53: 1728 | AS53: 2075
A54: 1400 | B54: =$E$6 -> 45 | C54: =$F$6 -> 40 | D54: 0 | E54: 159 | F54: 207 | G54: 253 | H54: 301 | I54: 344 | J54: 431 | K54: 0 | L54: 266 | M54: 341 | N54: 413 | O54: 482 | P54: 0 | Q54: 685 | R54: 0 | S54: 275 | T54: 346 | U54: 415 | V54: 484 | W54: 545 | X54: 663 | Y54: 0 | Z54: 357 | AA54: 443 | AB54: 529 | AC54: 597 | AD54: 673 | AE54: 816 | AF54: 333 | AG54: 451 | AH54: 555 | AI54: 664 | AJ54: 770 | AK54: 858 | AL54: 1031 | AM54: 476 | AN54: 643 | AO54: 785 | AP54: 923 | AQ54: 1056 | AR54: 1180 | AS54: 1411
A55: 1600 | B55: =$E$3 -> 100 | C55: =$F$3 -> 80 | D55: =IF($K$3="AR",$A55/1000*D$82*POWER(((($B55+$C55)/2)-$A$9)/($M$3),D$83),$A55/1000*D$82*POWER(((($B55-$C55)/(LN(($B55-$A$9)/($C55-$A$9))))/($M$3)),D$83)) -> 0 | E55: 827 | F55: 1055 | G55: 1277 | H55: 1494 | I55: 1719 | J55: 2174 | K55: 0 | L55: 1264 | M55: 1642 | N55: =IF($K$3="AR",$A55/1000*N$82*POWER(((($B55+$C55)/2)-$A$9)/($M$3),N$83),$A55/1000*N$82*POWER(((($B55-$C55)/(LN(($B55-$A$9)/($C55-$A$9))))/($M$3)),N$83)) -> 2015 | O55: 2381 | P55: 0 | Q55: 3438 | R55: 0 | S55: 1372 | T55: 1729 | U55: 2077 | V55: 2425 | W55: 2786 | X55: =IF($K$3="AR",$A55/1000*X$82*POWER(((($B55+$C55)/2)-$A$9)/($M$3),X$83),$A55/1000*X$82*POWER(((($B55-$C55)/(LN(($B55-$A$9)/($C55-$A$9))))/($M$3)),X$83)) -> 3529 | Y55: 0 | Z55: 1728 | AA55: 2178 | AB55: 2596 | AC55: 3025 | AD55: 3419 | AE55: 4178 | AF55: 1585 | AG55: 2191 | AH55: =IF($K$3="AR",$A55/1000*AH$82*POWER(((($B55+$C55)/2)-$A$9)/($M$3),AH$83),$A55/1000*AH$82*POWER(((($B55-$C55)/(LN(($B55-$A$9)/($C55-$A$9))))/($M$3)),AH$83)) -> 2768 | AI55: 3297 | AJ55: 3837 | AK55: 4315 | AL55: 5289 | AM55: 2289 | AN55: 3140 | AO55: 3940 | AP55: 4685 | AQ55: 5391 | AR55: 6075 | AS55: 7394
A56: 1600 | B56: =$E$4 -> 75 | C56: =$F$4 -> 65 | D56: 0 | E56: 528 | F56: 677 | G56: 822 | H56: 966 | I56: 1110 | J56: 1400 | K56: 0 | L56: 829 | M56: 1072 | N56: 1310 | O56: 1542 | P56: 0 | Q56: 2218 | R56: 0 | S56: 886 | T56: 1117 | U56: 1341 | V56: 1565 | W56: 1787 | X56: 2237 | Y56: 0 | Z56: 1126 | AA56: 1413 | AB56: 1685 | AC56: 1946 | AD56: 2197 | AE56: 2678 | AF56: 1038 | AG56: 1427 | AH56: 1789 | AI56: 2133 | AJ56: 2480 | AK56: 2781 | AL56: 3389 | AM56: 1494 | AN56: 2042 | AO56: 2541 | AP56: 3011 | AQ56: 3459 | AR56: 3888 | AS56: 4707
A57: 1600 | B57: =$E$5 -> 55 | C57: =$F$5 -> 45 | D57: 0 | E57: 267 | F57: 345 | G57: 422 | H57: 499 | I57: 572 | J57: 718 | K57: 0 | L57: 436 | M57: 561 | N57: 682 | O57: 798 | P57: 0 | Q57: 1140 | R57: 0 | S57: 457 | T57: 575 | U57: 690 | V57: 805 | W57: 911 | X57: 1120 | Y57: 0 | Z57: 588 | AA57: 732 | AB57: 874 | AC57: 996 | AD57: 1122 | AE57: 1364 | AF57: 547 | AG57: 744 | AH57: 922 | AI57: 1101 | AJ57: 1278 | AK57: 1427 | AL57: 1724 | AM57: 782 | AN57: 1062 | AO57: 1305 | AP57: 1539 | AQ57: 1764 | AR57: 1974 | AS57: 2372
A58: 1600 | B58: =$E$6 -> 45 | C58: =$F$6 -> 40 | D58: 0 | E58: 182 | F58: 236 | G58: 290 | H58: 344 | I58: 394 | J58: 493 | K58: 0 | L58: 304 | M58: 390 | N58: 472 | O58: 550 | P58: 0 | Q58: 783 | R58: 0 | S58: 314 | T58: 396 | U58: 475 | V58: 554 | W58: 623 | X58: 758 | Y58: 0 | Z58: 408 | AA58: 506 | AB58: 604 | AC58: 683 | AD58: 769 | AE58: 932 | AF58: 381 | AG58: 516 | AH58: 635 | AI58: 759 | AJ58: 880 | AK58: 980 | AL58: 1178 | AM58: 543 | AN58: 735 | AO58: 897 | AP58: 1055 | AQ58: 1207 | AR58: 1348 | AS58: 1612
A59: 1800 | B59: =$E$3 -> 100 | C59: =$F$3 -> 80 | D59: 0 | E59: 930 | F59: 1187 | G59: 1436 | H59: 1680 | I59: 1934 | J59: 2446 | K59: 0 | L59: 1423 | M59: 1847 | N59: 2267 | O59: 2679 | P59: 0 | Q59: 3868 | R59: 0 | S59: 1544 | T59: 1945 | U59: 2336 | V59: 2728 | W59: 3134 | X59: 3970 | Y59: 0 | Z59: 1944 | AA59: 2450 | AB59: 2920 | AC59: 3403 | AD59: 3847 | AE59: 4701 | AF59: 1783 | AG59: 2465 | AH59: 3114 | AI59: 3709 | AJ59: 4317 | AK59: 4854 | AL59: 5950 | AM59: 2575 | AN59: 3533 | AO59: 4432 | AP59: 5271 | AQ59: 6065 | AR59: 6835 | AS59: 8318
A60: 1800 | B60: =$E$4 -> 75 | C60: =$F$4 -> 65 | D60: 0 | E60: 594 | F60: 761 | G60: 925 | H60: 1087 | I60: 1249 | J60: 1575 | K60: 0 | L60: 932 | M60: 1206 | N60: 1474 | O60: 1735 | P60: 0 | Q60: 2495 | R60: 0 | S60: 997 | T60: 1256 | U60: 1508 | V60: 1760 | W60: 2011 | X60: 2516 | Y60: 0 | Z60: 1267 | AA60: 1589 | AB60: 1895 | AC60: 2189 | AD60: 2471 | AE60: 3013 | AF60: 1168 | AG60: 1606 | AH60: 2012 | AI60: 2399 | AJ60: 2790 | AK60: 3128 | AL60: 3812 | AM60: 1681 | AN60: 2297 | AO60: 2858 | AP60: 3388 | AQ60: 3892 | AR60: 4374 | AS60: 5296
A61: 1800 | B61: =$E$5 -> 55 | C61: =$F$5 -> 45 | D61: 0 | E61: 301 | F61: 388 | G61: 475 | H61: 561 | I61: 643 | J61: 807 | K61: 0 | L61: 491 | M61: 631 | N61: 767 | O61: 898 | P61: 0 | Q61: 1282 | R61: 0 | S61: 514 | T61: 647 | U61: 776 | V61: 906 | W61: 1025 | X61: 1260 | Y61: 0 | Z61: 662 | AA61: 824 | AB61: 983 | AC61: 1120 | AD61: 1263 | AE61: 1534 | AF61: 615 | AG61: 837 | AH61: 1037 | AI61: 1239 | AJ61: 1438 | AK61: 1606 | AL61: 1940 | AM61: 880 | AN61: 1195 | AO61: 1469 | AP61: 1731 | AQ61: 1984 | AR61: 2221 | AS61: 2668
A62: 1800 | B62: =$E$6 -> 45 | C62: =$F$6 -> 40 | D62: 0 | E62: 205 | F62: 266 | G62: 326 | H62: 387 | I62: 443 | J62: 554 | K62: 0 | L62: 342 | M62: 438 | N62: 531 | O62: 619 | P62: 0 | Q62: 881 | R62: 0 | S62: 354 | T62: 445 | U62: 534 | V62: 623 | W62: 701 | X62: 853 | Y62: 0 | Z62: 459 | AA62: 569 | AB62: 680 | AC62: 768 | AD62: 865 | AE62: 1049 | AF62: 429 | AG62: 580 | AH62: 714 | AI62: 853 | AJ62: 990 | AK62: 1103 | AL62: 1326 | AM62: 611 | AN62: 827 | AO62: 1009 | AP62: 1186 | AQ62: 1358 | AR62: 1517 | AS62: 1814
A63: 2000 | B63: =$E$3 -> 100 | C63: =$F$3 -> 80 | D63: 0 | E63: 1033 | F63: 1319 | G63: 1596 | H63: 1867 | I63: 2149 | J63: 2718 | K63: 0 | L63: 1581 | M63: 2052 | N63: 2519 | O63: 2976 | P63: 0 | Q63: 4298 | R63: 0 | S63: 1715 | T63: 2162 | U63: 2596 | V63: 3031 | W63: 3482 | X63: 4411 | Y63: 0 | Z63: 2160 | AA63: 2723 | AB63: 3244 | AC63: 3781 | AD63: 4274 | AE63: 5223 | AF63: 1981 | AG63: 2739 | AH63: 3460 | AI63: 4121 | AJ63: 4796 | AK63: 5394 | AL63: 6611 | AM63: 2861 | AN63: 3925 | AO63: 4925 | AP63: 5857 | AQ63: 6739 | AR63: 7594 | AS63: 9242
A64: 2000 | B64: =$E$4 -> 75 | C64: =$F$4 -> 65 | D64: 0 | E64: 660 | F64: 846 | G64: 1028 | H64: 1208 | I64: 1388 | J64: 1750 | K64: 0 | L64: 1036 | M64: 1340 | N64: 1638 | O64: 1928 | P64: 0 | Q64: 2772 | R64: 0 | S64: 1108 | T64: 1396 | U64: 1676 | V64: 1956 | W64: 2234 | X64: 2796 | Y64: 0 | Z64: 1408 | AA64: 1766 | AB64: 2106 | AC64: 2432 | AD64: 2746 | AE64: 3348 | AF64: 1298 | AG64: 1784 | AH64: 2236 | AI64: 2666 | AJ64: 3100 | AK64: 3476 | AL64: 4236 | AM64: 1868 | AN64: 2552 | AO64: 3176 | AP64: 3764 | AQ64: 4324 | AR64: 4860 | AS64: 5884
A65: 2000 | B65: =$E$5 -> 55 | C65: =$F$5 -> 45 | D65: =IF($K$3="AR",$A65/1000*D$82*POWER(((($B65+$C65)/2)-$A$9)/($M$3),D$83),$A65/1000*D$82*POWER(((($B65-$C65)/(LN(($B65-$A$9)/($C65-$A$9))))/($M$3)),D$83)) -> 0 | E65: 334 | F65: 431 | G65: 527 | H65: 624 | I65: 715 | J65: 897 | K65: 0 | L65: 546 | M65: 701 | N65: =IF($K$3="AR",$A65/1000*N$82*POWER(((($B65+$C65)/2)-$A$9)/($M$3),N$83),$A65/1000*N$82*POWER(((($B65-$C65)/(LN(($B65-$A$9)/($C65-$A$9))))/($M$3)),N$83)) -> 852 | O65: 997 | P65: 0 | Q65: 1424 | R65: 0 | S65: 571 | T65: 719 | U65: 863 | V65: 1006 | W65: 1139 | X65: =IF($K$3="AR",$A65/1000*X$82*POWER(((($B65+$C65)/2)-$A$9)/($M$3),X$83),$A65/1000*X$82*POWER(((($B65-$C65)/(LN(($B65-$A$9)/($C65-$A$9))))/($M$3)),X$83)) -> 1400 | Y65: 0 | Z65: 735 | AA65: 915 | AB65: 1093 | AC65: 1244 | AD65: 1403 | AE65: 1704 | AF65: 683 | AG65: 930 | AH65: =IF($K$3="AR",$A65/1000*AH$82*POWER(((($B65+$C65)/2)-$A$9)/($M$3),AH$83),$A65/1000*AH$82*POWER(((($B65-$C65)/(LN(($B65-$A$9)/($C65-$A$9))))/($M$3)),AH$83)) -> 1152 | AI65: 1376 | AJ65: 1598 | AK65: 1784 | AL65: 2155 | AM65: 978 | AN65: 1327 | AO65: 1632 | AP65: 1924 | AQ65: 2205 | AR65: 2468 | AS65: 2965
A66: 2000 | B66: =$E$6 -> 45 | C66: =$F$6 -> 40 | D66: 0 | E66: 228 | F66: 295 | G66: 362 | H66: 430 | I66: 492 | J66: 616 | K66: 0 | L66: 380 | M66: 487 | N66: 590 | O66: 688 | P66: 0 | Q66: 979 | R66: 0 | S66: 393 | T66: 495 | U66: 593 | V66: 692 | W66: 779 | X66: 948 | Y66: 0 | Z66: 510 | AA66: 632 | AB66: 755 | AC66: 853 | AD66: 961 | AE66: 1165 | AF66: 476 | AG66: 645 | AH66: 793 | AI66: 948 | AJ66: 1100 | AK66: 1225 | AL66: 1473 | AM66: 679 | AN66: 919 | AO66: 1121 | AP66: 1318 | AQ66: 1509 | AR66: 1685 | AS66: 2015
A67: 2300 | B67: =$E$3 -> 100 | C67: =$F$3 -> 80 | D67: 0 | E67: 1188 | F67: 1517 | G67: 1835 | H67: 2147 | I67: 2471 | J67: 3125 | K67: 0 | L67: 1818 | M67: 2360 | N67: 2896 | O67: 3423 | P67: 0 | Q67: 4942 | R67: 0 | S67: 1972 | T67: 2486 | U67: 2985 | V67: 3485 | W67: 4005 | X67: 5072 | Y67: 0 | Z67: 2484 | AA67: 3131 | AB67: 3731 | AC67: 4348 | AD67: 4915 | AE67: 6006 | AF67: 2278 | AG67: 3150 | AH67: 3979 | AI67: 4739 | AJ67: 5516 | AK67: 6203 | AL67: 7603 | AM67: 3290 | AN67: 4514 | AO67: 5664 | AP67: 6735 | AQ67: 7750 | AR67: 8733 | AS67: 10629
A68: 2300 | B68: =$E$4 -> 75 | C68: =$F$4 -> 65 | D68: 0 | E68: 759 | F68: 973 | G68: 1182 | H68: 1389 | I68: 1596 | J68: 2013 | K68: 0 | L68: 1191 | M68: 1541 | N68: 1884 | O68: 2217 | P68: 0 | Q68: 3188 | R68: 0 | S68: 1274 | T68: 1605 | U68: 1927 | V68: 2249 | W68: 2569 | X68: 3215 | Y68: 0 | Z68: 1619 | AA68: 2031 | AB68: 2422 | AC68: 2797 | AD68: 3158 | AE68: 3850 | AF68: 1493 | AG68: 2052 | AH68: 2571 | AI68: 3066 | AJ68: 3565 | AK68: 3997 | AL68: 4871 | AM68: 2148 | AN68: 2935 | AO68: 3652 | AP68: 4329 | AQ68: 4973 | AR68: 5589 | AS68: 6767
A69: 2300 | B69: =$E$5 -> 55 | C69: =$F$5 -> 45 | D69: 0 | E69: 384 | F69: 496 | G69: 606 | H69: 717 | I69: 822 | J69: 1032 | K69: 0 | L69: 627 | M69: 807 | N69: 980 | O69: 1147 | P69: 0 | Q69: 1638 | R69: 0 | S69: 656 | T69: 827 | U69: 992 | V69: 1157 | W69: 1310 | X69: 1609 | Y69: 0 | Z69: 845 | AA69: 1053 | AB69: 1257 | AC69: 1431 | AD69: 1613 | AE69: 1960 | AF69: 786 | AG69: 1070 | AH69: 1325 | AI69: 1583 | AJ69: 1838 | AK69: 2052 | AL69: 2478 | AM69: 1125 | AN69: 1527 | AO69: 1876 | AP69: 2212 | AQ69: 2535 | AR69: 2838 | AS69: 3409
A70: 2300 | B70: =$E$6 -> 45 | C70: =$F$6 -> 40 | D70: 0 | E70: 262 | F70: 339 | G70: 416 | H70: 494 | I70: 566 | J70: 708 | K70: 0 | L70: 437 | M70: 560 | N70: 679 | O70: 791 | P70: 0 | Q70: 1126 | R70: 0 | S70: 452 | T70: 569 | U70: 682 | V70: 796 | W70: 896 | X70: 1090 | Y70: 0 | Z70: 586 | AA70: 727 | AB70: 868 | AC70: 981 | AD70: 1105 | AE70: 1340 | AF70: 548 | AG70: 742 | AH70: 912 | AI70: 1091 | AJ70: 1265 | AK70: 1409 | AL70: 1694 | AM70: 781 | AN70: 1056 | AO70: 1290 | AP70: 1516 | AQ70: 1735 | AR70: 1938 | AS70: 2317
A71: 2600 | B71: =$E$3 -> 100 | C71: =$F$3 -> 80 | D71: 0 | E71: 1343 | F71: 1714 | G71: 2074 | H71: 2427 | I71: 2793 | J71: 3533 | K71: 0 | L71: 2055 | M71: 2668 | N71: 3274 | O71: 3869 | P71: 0 | Q71: 5587 | R71: 0 | S71: 2230 | T71: 2810 | U71: 3375 | V71: 3940 | W71: 4527 | X71: 5734 | Y71: 0 | Z71: 2808 | AA71: 3539 | AB71: 4218 | AC71: 4916 | AD71: 5556 | AE71: 6790 | AF71: 2575 | AG71: 3561 | AH71: 4498 | AI71: 5358 | AJ71: 6235 | AK71: 7012 | AL71: 8595 | AM71: 3719 | AN71: 5103 | AO71: 6402 | AP71: 7614 | AQ71: 8760 | AR71: 9872 | AS71: 12015
A72: 2600 | B72: =$E$4 -> 75 | C72: =$F$4 -> 65 | D72: 0 | E72: 858 | F72: 1100 | G72: 1336 | H72: 1570 | I72: 1804 | J72: 2275 | K72: 0 | L72: 1347 | M72: 1742 | N72: 2129 | O72: 2506 | P72: 0 | Q72: 3604 | R72: 0 | S72: 1440 | T72: 1815 | U72: 2179 | V72: 2543 | W72: 2904 | X72: 3635 | Y72: 0 | Z72: 1830 | AA72: 2296 | AB72: 2738 | AC72: 3162 | AD72: 3570 | AE72: 4352 | AF72: 1687 | AG72: 2319 | AH72: 2907 | AI72: 3466 | AJ72: 4030 | AK72: 4519 | AL72: 5507 | AM72: 2428 | AN72: 3318 | AO72: 4129 | AP72: 4893 | AQ72: 5621 | AR72: 6318 | AS72: 7649
A73: 2600 | B73: =$E$5 -> 55 | C73: =$F$5 -> 45 | D73: 0 | E73: 435 | F73: 561 | G73: 686 | H73: 811 | I73: 929 | J73: 1166 | K73: 0 | L73: 709 | M73: 912 | N73: 1108 | O73: 1297 | P73: 0 | Q73: 1852 | R73: 0 | S73: 742 | T73: 934 | U73: 1121 | V73: 1308 | W73: 1480 | X73: 1819 | Y73: 0 | Z73: 956 | AA73: 1190 | AB73: 1421 | AC73: 1618 | AD73: 1824 | AE73: 2216 | AF73: 888 | AG73: 1210 | AH73: 1498 | AI73: 1789 | AJ73: 2078 | AK73: 2319 | AL73: 2802 | AM73: 1271 | AN73: 1726 | AO73: 2121 | AP73: 2501 | AQ73: 2866 | AR73: 3208 | AS73: 3854
A74: 2600 | B74: =$E$6 -> 45 | C74: =$F$6 -> 40 | D74: 0 | E74: 296 | F74: 384 | G74: 471 | H74: 559 | I74: 640 | J74: 800 | K74: 0 | L74: 494 | M74: 633 | N74: 767 | O74: 895 | P74: 0 | Q74: 1273 | R74: 0 | S74: 511 | T74: 643 | U74: 771 | V74: 900 | W74: 1013 | X74: 1232 | Y74: 0 | Z74: 663 | AA74: 822 | AB74: 982 | AC74: 1109 | AD74: 1249 | AE74: 1515 | AF74: 619 | AG74: 838 | AH74: 1031 | AI74: 1233 | AJ74: 1430 | AK74: 1593 | AL74: 1915 | AM74: 883 | AN74: 1194 | AO74: 1458 | AP74: 1714 | AQ74: 1961 | AR74: 2191 | AS74: 2620
A75: 3000 | B75: =$E$3 -> 100 | C75: =$F$3 -> 80 | D75: 0 | E75: 1550 | F75: 1978 | G75: 2394 | H75: 2801 | I75: 3223 | J75: 4077 | K75: 0 | L75: 2371 | M75: 3079 | N75: 3778 | O75: 4464 | P75: 0 | Q75: 6447 | R75: 0 | S75: 2573 | T75: 3242 | U75: 3894 | V75: 4546 | W75: 5223 | X75: 6616 | Y75: 0 | Z75: 3240 | AA75: 4084 | AB75: 4867 | AC75: 5672 | AD75: 6411 | AE75: 7834 | AF75: 2971 | AG75: 4109 | AH75: 5190 | AI75: 6182 | AJ75: 7194 | AK75: 8090 | AL75: 9917 | AM75: 4291 | AN75: 5888 | AO75: 7387 | AP75: 8785 | AQ75: 10108 | AR75: 11391 | AS75: 13863
A76: 3000 | B76: =$E$4 -> 75 | C76: =$F$4 -> 65 | D76: 0 | E76: 990 | F76: 1269 | G76: 1542 | H76: 1812 | I76: 2082 | J76: 2625 | K76: 0 | L76: 1554 | M76: 2010 | N76: 2457 | O76: 2892 | P76: 0 | Q76: 4158 | R76: 0 | S76: 1662 | T76: 2094 | U76: 2514 | V76: 2934 | W76: 3351 | X76: 4194 | Y76: 0 | Z76: 2112 | AA76: 2649 | AB76: 3159 | AC76: 3648 | AD76: 4119 | AE76: 5022 | AF76: 1947 | AG76: 2676 | AH76: 3354 | AI76: 3999 | AJ76: 4650 | AK76: 5214 | AL76: 6354 | AM76: 2802 | AN76: 3828 | AO76: 4764 | AP76: 5646 | AQ76: 6486 | AR76: 7290 | AS76: 8826
A77: 3000 | B77: =$E$5 -> 55 | C77: =$F$5 -> 45 | D77: 0 | E77: 501 | F77: 647 | G77: 791 | H77: 935 | I77: 1072 | J77: 1346 | K77: 0 | L77: 818 | M77: 1052 | N77: 1279 | O77: 1496 | P77: 0 | Q77: 2137 | R77: 0 | S77: 856 | T77: 1078 | U77: 1294 | V77: 1509 | W77: 1708 | X77: 2099 | Y77: 0 | Z77: 1103 | AA77: 1373 | AB77: 1639 | AC77: 1867 | AD77: 2104 | AE77: 2557 | AF77: 1025 | AG77: 1396 | AH77: 1729 | AI77: 2064 | AJ77: 2397 | AK77: 2676 | AL77: 3233 | AM77: 1467 | AN77: 1991 | AO77: 2448 | AP77: 2886 | AQ77: 3307 | AR77: 3702 | AS77: 4447
A78: 3000 | B78: =$E$6 -> 45 | C78: =$F$6 -> 40 | D78: 0 | E78: 342 | F78: 443 | G78: 543 | H78: 645 | I78: 738 | J78: 923 | K78: 0 | L78: 570 | M78: 731 | N78: 885 | O78: 1032 | P78: 0 | Q78: 1469 | R78: 0 | S78: 589 | T78: 742 | U78: 890 | V78: 1038 | W78: 1169 | X78: 1422 | Y78: 0 | Z78: 765 | AA78: 948 | AB78: 1133 | AC78: 1280 | AD78: 1441 | AE78: 1748 | AF78: 714 | AG78: 967 | AH78: 1190 | AI78: 1422 | AJ78: 1651 | AK78: 1838 | AL78: 2209 | AM78: 1019 | AN78: 1378 | AO78: 1682 | AP78: 1977 | AQ78: 2263 | AR78: 2528 | AS78: 3023
D80: Typ 10 | K80: Typ 11 | R80: Typ 20 | Y80: Typ 21 | AF80: Typ 22 | AM80: Typ 33
A81: Výška H [mm] | D81: 200 | E81: 300 | F81: 400 | G81: 500 | H81: 600 | I81: 700 | J81: 900 | K81: 200 | L81: 300 | M81: 400 | N81: 500 | O81: 600 | P81: 700 | Q81: 900 | R81: 200 | S81: 300 | T81: 400 | U81: 500 | V81: 600 | W81: 700 | X81: 900 | Y81: 200 | Z81: 300 | AA81: 400 | AB81: 500 | AC81: 600 | AD81: 700 | AE81: 900 | AF81: 200 | AG81: 300 | AH81: 400 | AI81: 500 | AJ81: 600 | AK81: 700 | AL81: 900 | AM81: 200 | AN81: 300 | AO81: 400 | AP81: 500 | AQ81: 600 | AR81: 700 | AS81: 900
A82: QN [W/m] | D82: 0 | E82: 330 | F82: 423 | G82: 514 | H82: 604 | I82: 694 | J82: 875 | K82: 0 | L82: 518 | M82: 670 | N82: 819 | O82: 964 | P82: 0 | Q82: 1386 | R82: 0 | S82: 554 | T82: 698 | U82: 838 | V82: 978 | W82: 1117 | X82: 1398 | Y82: 0 | Z82: 704 | AA82: 883 | AB82: 1053 | AC82: 1216 | AD82: 1373 | AE82: 1674 | AF82: 649 | AG82: 892 | AH82: 1118 | AI82: 1333 | AJ82: 1550 | AK82: 1738 | AL82: 2118 | AM82: 934 | AN82: 1276 | AO82: 1588 | AP82: 1882 | AQ82: 2162 | AR82: 2430 | AS82: 2942
A83: n [-] | D83: 0.0000 | E83: 1.3319 | F83: 1.3193 | G83: 1.3068 | H83: 1.2942 | I83: 1.2989 | J83: 1.3083 | K83: 0.0000 | L83: 1.2555 | M83: 1.2671 | N83: 1.2787 | O83: 1.2903 | P83: 0.0000 | Q83: 1.3033 | R83: 0.0000 | S83: 1.2986 | T83: 1.2995 | U83: 1.3005 | V83: 1.3014 | W83: 1.3192 | X83: 1.3548 | Y83: 0.0000 | Z83: 1.2721 | AA83: 1.2864 | AB83: 1.2844 | AC83: 1.3116 | AD83: 1.3149 | AE83: 1.3216 | AF83: 1.2560 | AG83: 1.2743 | AH83: 1.2975 | AI83: 1.2945 | AJ83: 1.2971 | AK83: 1.3057 | AL83: 1.3230 | AM83: 1.2668 | AN83: 1.2796 | AO83: 1.3038 | AP83: 1.3139 | AQ83: 1.3187 | AR83: 1.3265 | AS83: 1.3420
A84: KM | D84: 0.0000 | E84: 1.8016 | F84: 2.4260 | G84: 3.0956 | H84: 3.8215 | I84: 4.3109 | J84: 5.2390 | K84: 0.0000 | L84: 3.8131 | M84: 4.7131 | N84: 5.5057 | O84: 6.1929 | P84: 0.0000 | Q84: 8.4624 | R84: 0.0000 | S84: 3.4453 | T84: 4.3256 | U84: 5.1729 | V84: 6.0159 | W84: 6.4087 | X84: 6.9782 | Y84: 0.0000 | Z84: 4.8564 | AA84: 5.7598 | AB84: 6.9226 | AC84: 7.1873 | AD84: 8.0112 | AE84: 9.5147 | AF84: 4.7680 | AG84: 6.1005 | AH84: 6.9828 | AI84: 8.4239 | AJ84: 9.6961 | AK84: 10.5125 | AL84: 11.9726 | AM84: 6.5780 | AN84: 8.5477 | AO84: 9.6768 | AP84: 11.0241 | AQ84: 12.4286 | AR84: 13.5495 | AS84: 15.4392
